fUST/lending_fUST_20240227
["ID","MTS","AMOUNT","RATE_DAILY","PERIOD"]
[315260883,1708971040356,-500.0,0.00019178,2]
[315260884,1708971040370,-500.0,0.00019178,2]
[315260885,1708971040379,-500.0,0.00019178,2]
[315260886,1708971040388,-500.0,0.00019178,2]
[315260887,1708971040397,-500.85128667,0.00019178,2]
[315260888,1708971040406,-500.0,0.00019178,2]
[315260889,1708971040415,-2203.22,0.00019178,2]
[315260890,1708971040424,-500.0,0.00019178,2]
[315260891,1708971040433,-500.0,0.00019178,2]
[315260892,1708971040442,-500.0,0.00019178,2]
[315260893,1708971040451,-500.0,0.00019178,2]
[315260894,1708971040460,-627.45,0.00019178,2]
[315260895,1708971040469,-500.0,0.00019178,2]
[315260896,1708971040477,-1458.61,0.00019178,2]
[315260897,1708971040486,-500.0,0.00019178,2]
[315260898,1708971040495,-500.0,0.00019178,2]
[315260899,1708971040504,-1682.1,0.00019178,2]
[315260900,1708971040513,-500.0,0.00019178,2]
[315260901,1708971040522,-500.0,0.00019178,2]
[315260902,1708971040531,-915.45,0.00019178,2]
[315260903,1708971040543,-1021.98,0.00019178,2]
[315260904,1708971040552,-500.0,0.00019178,2]
[315260905,1708971040561,-500.0,0.00019178,2]
[315260906,1708971040573,-230.32522058,0.00019178,2]
[315260907,1708971040583,-500.0,0.00019178,2]
[315260908,1708971040592,-579.17,0.00019178,2]
[315260909,1708971040602,-1456.13,0.00019178,2]
[315260910,1708971040611,-1213.18,0.00019178,2]
[315260911,1708971040620,-501.52534223,0.00019178,2]
[315260912,1708971040629,-1000.0,0.00019178,2]
[315260913,1708971040638,-500.0,0.00019178,2]
[315260914,1708971040648,-5506.18,0.00019178,2]
[315260915,1708971040657,-10856.96,0.00019178,2]
[315260916,1708971040667,-500.0,0.00019178,2]
[315260917,1708971040677,-500.0,0.00019178,2]
[315260918,1708971040686,-500.0,0.00019178,2]
[315260919,1708971040695,-522.16106929,0.00019178,2]
[315260920,1708971040704,-500.0,0.00019178,2]
[315260921,1708971040713,-500.0,0.00019178,2]
[315260922,1708971040722,-500.0,0.00019178,2]
[315260923,1708971040732,-1205.71,0.00019178,2]
[315260924,1708971040741,-579.6253241,0.00019178,2]
[315260925,1708971040750,-500.0,0.00019178,2]
[315260926,1708971040759,-500.0,0.00019178,2]
[315260927,1708971040768,-1953.4,0.00019178,2]
[315260928,1708971040777,-500.0,0.00019178,2]
[315260929,1708971040785,-500.0,0.00019178,2]
[315260930,1708971040794,-500.0,0.00019178,2]
[315260931,1708971040804,-501.17230716,0.00019178,2]
[315260932,1708971040814,-500.0,0.00019178,2]
[315260933,1708971040824,-500.0,0.00019178,2]
[315260934,1708971040833,-500.0,0.00019178,2]
[315260935,1708971040843,-500.0,0.00019178,2]
[315260936,1708971040852,-500.0,0.00019178,2]
[315260937,1708971040861,-500.0,0.00019178,2]
[315260938,1708971040870,-500.0,0.00019178,2]
[315260939,1708971040880,-500.0,0.00019178,2]
[315260940,1708971040889,-500.0,0.00019178,2]
[315260941,1708971040898,-604.40046169,0.00019178,2]
[315260942,1708971040907,-1182.37,0.00019178,2]
[315260943,1708971040916,-500.0,0.00019178,2]
[315260944,1708971040925,-500.0,0.00019178,2]
[315260945,1708971040934,-500.0,0.00019178,2]
[315260946,1708971040945,-1712.84,0.00019178,2]
[315260947,1708971040954,-869.89,0.00019178,2]
[315260948,1708971040964,-500.0,0.00019178,2]
[315260949,1708971040973,-500.0,0.00019178,2]
[315260950,1708971040982,-500.0,0.00019178,2]
[315260951,1708971040990,-721.41,0.00019178,2]
[315260952,1708971040999,-1161.97,0.00019178,2]
[315260953,1708971041008,-284.91608667,0.00019178,2]
[315260954,1708971041017,-500.0,0.00019178,2]
[315260955,1708971041026,-4630.33,0.00019178,2]
[315260956,1708971041035,-500.0,0.00019178,2]
[315260957,1708971041043,-166.010736,0.00019178,2]
[315260958,1708971041052,-165.814786,0.00019178,2]
[315260959,1708971041061,-166.666666,0.00019178,2]
[315260960,1708971041071,-253.57339376,0.00019352,2]
[315260961,1708971041083,-479.17651164,0.00019452,2]
[315260962,1708971041092,-500.0,0.00019452,2]
[315260963,1708971041101,-500.0,0.00019452,2]
[315260964,1708971041109,-500.0,0.00019452,2]
[315260965,1708971041118,-500.0,0.00019452,2]
[315260966,1708971041126,-449.10144349,0.00019452,2]
[315260967,1708971041135,-179.60062672,0.00019452,2]
[315260968,1708971041144,-519.72,0.00019452,2]
[315260969,1708971041152,-677.84,0.00019452,2]
[315260970,1708971041162,-500.0,0.00019452,2]
[315260971,1708971041171,-646.89,0.00019452,2]
[315260972,1708971041180,-500.0,0.00019452,2]
[315260973,1708971041189,-253.68558529,0.00019452,2]
[315260974,1708971041198,-500.0,0.00019452,2]
[315260975,1708971041208,-500.0,0.00019452,2]
[315260976,1708971041217,-559.01,0.00019452,2]
[315260977,1708971041226,-500.0,0.00019452,2]
[315260978,1708971041236,-844.37,0.00019452,2]
[315260979,1708971041244,-624.62,0.00019452,2]
[315260980,1708971041254,-501.25023183,0.00019452,2]
[315260982,1708971041263,-500.0,0.00019452,2]
[315260983,1708971041273,-506.31,0.00019452,2]
[315260984,1708971041282,-521.33,0.00019452,2]
[315260985,1708971041291,-10184.91,0.00019452,2]
[315260986,1708971041300,-732.04,0.00019452,2]
[315260987,1708971041309,-500.0,0.00019452,2]
[315260989,1708971041320,-500.0,0.00019452,2]
[315260991,1708971041329,-500.0,0.00019452,2]
[315260992,1708971041339,-500.0,0.00019452,2]
[315260994,1708971041348,-2203.22,0.00019452,2]
[315260996,1708971041358,-500.0,0.00019452,2]
[315260998,1708971041368,-627.45,0.00019452,2]
[315261000,1708971041377,-1458.61,0.00019452,2]
[315261002,1708971041386,-1682.1,0.00019452,2]
[315261003,1708971041396,-500.0,0.00019452,2]
[315261004,1708971041406,-501.88019527,0.00019452,2]
[315261005,1708971041415,-915.45,0.00019452,2]
[315261006,1708971041425,-1021.98,0.00019452,2]
[315261007,1708971041434,-500.0,0.00019452,2]
[315261008,1708971041444,-253.01436056,0.00019452,2]
[315261010,1708971041453,-635.83996825,0.00019452,2]
[315261011,1708971041462,-1456.13,0.00019452,2]
[315261012,1708971041471,-1213.18,0.00019452,2]
[315261013,1708971041480,-1000.0,0.00019452,2]
[315261014,1708971041490,-500.0,0.00019452,2]
[315261015,1708971041499,-5506.18,0.00019452,2]
[315261016,1708971041508,-10856.96,0.00019452,2]
[315261017,1708971041517,-500.0,0.00019452,2]
[315261018,1708971041525,-156.21266389,0.00019452,2]
[315261019,1708971041534,-500.0,0.00019452,2]
[315261020,1708971041543,-536.17501023,0.00019452,2]
[315261021,1708971041553,-1205.71,0.00019452,2]
[315261022,1708971041562,-500.0,0.00019452,2]
[315261023,1708971041574,-500.0,0.00019452,2]
[315261024,1708971041585,-1953.4,0.00019452,2]
[315261025,1708971041594,-500.0,0.00019452,2]
[315261026,1708971041603,-500.0,0.00019452,2]
[315261027,1708971041612,-500.0,0.00019452,2]
[315261028,1708971041621,-500.0,0.00019452,2]
[315261029,1708971041630,-500.0,0.00019452,2]
[315261030,1708971041639,-186.03022724,0.00019452,2]
[315261031,1708971041648,-500.0,0.00019452,2]
[315261032,1708971041658,-1182.37,0.00019452,2]
[315261033,1708971041668,-500.0,0.00019452,2]
[315261034,1708971041677,-500.0,0.00019452,2]
[315261035,1708971041686,-500.0,0.00019452,2]
[315261036,1708971041695,-1712.84,0.00019452,2]
[315261037,1708971041704,-869.89,0.00019452,2]
[315261038,1708971041713,-500.0,0.00019452,2]
[315261039,1708971041722,-500.0,0.00019452,2]
[315261040,1708971041731,-721.41,0.00019452,2]
[315261041,1708971041740,-1161.97,0.00019452,2]
[315261042,1708971041750,-500.0,0.00019452,2]
[315261043,1708971041759,-4630.33,0.00019452,2]
[315261044,1708971041768,-500.0,0.00019452,2]
[315261045,1708971041778,-166.666666,0.00019627,2]
[315261046,1708971041787,-500.0,0.00019726,2]
[315261047,1708971041796,-500.0,0.00019726,2]
[315261048,1708971041805,-519.72,0.00019726,2]
[315261049,1708971041815,-677.84,0.00019726,2]
[315261050,1708971041824,-646.89,0.00019726,2]
[315261051,1708971041833,-500.0,0.00019726,2]
[315261052,1708971041842,-500.0,0.00019726,2]
[315261053,1708971041851,-844.37,0.00019726,2]
[315261054,1708971041861,-624.62,0.00019726,2]
[315261055,1708971041870,-500.0,0.00019726,2]
[315261056,1708971041879,-506.31,0.00019726,2]
[315261057,1708971041889,-521.33,0.00019726,2]
[315261058,1708971041898,-10184.91,0.00019726,2]
[315261059,1708971041907,-732.04,0.00019726,2]
[315261060,1708971041916,-500.0,0.00019726,2]
[315261061,1708971042007,-500.0,0.00019726,2]
[315261062,1708971042028,-2203.22,0.00019726,2]
[315261063,1708971042037,-500.0,0.00019726,2]
[315261064,1708971042046,-627.45,0.00019726,2]
[315261065,1708971042055,-1458.61,0.00019726,2]
[315261066,1708971042065,-1682.1,0.00019726,2]
[315261067,1708971042074,-500.0,0.00019726,2]
[315261068,1708971042083,-915.45,0.00019726,2]
[315261069,1708971042092,-1021.98,0.00019726,2]
[315261070,1708971042101,-1456.13,0.00019726,2]
[315261071,1708971042111,-1213.18,0.00019726,2]
[315261072,1708971042120,-500.0,0.00019726,2]
[315261073,1708971042130,-5506.18,0.00019726,2]
[315261074,1708971042139,-10856.96,0.00019726,2]
[315261075,1708971042148,-500.0,0.00019726,2]
[315261076,1708971042158,-1205.71,0.00019726,2]
[315261077,1708971042167,-500.0,0.00019726,2]
[315261078,1708971042177,-1953.4,0.00019726,2]
[315261079,1708971042187,-500.0,0.00019726,2]
[315261080,1708971042196,-500.0,0.00019726,2]
[315261081,1708971042205,-500.0,0.00019726,2]
[315261082,1708971042214,-1182.37,0.00019726,2]
[315261083,1708971042224,-609.4828341,0.00019726,2]
[315261084,1708971042233,-500.0,0.00019726,2]
[315261085,1708971042243,-500.0,0.00019726,2]
[315261086,1708971042252,-1712.84,0.00019726,2]
[315261087,1708971042262,-869.89,0.00019726,2]
[315261088,1708971042272,-500.0,0.00019726,2]
[315261089,1708971042281,-721.41,0.00019726,2]
[315261090,1708971042291,-1161.97,0.00019726,2]
[315261091,1708971042300,-4630.33,0.00019726,2]
[315261092,1708971042309,-500.0,0.00019726,2]
[315261093,1708971042319,-253.57339372,0.00019728,2]
[315261094,1708971042328,-236.45717737,0.00019878,2]
[315261095,1708971042338,-8230.24916882,0.0001989,2]
[315261096,1708971042347,-104303.12329218,0.00019999,2]
[315261097,1708971042356,-500.0,0.00019999,2]
[315261098,1708971042365,-253.71658499,0.00019999,2]
[315261099,1708971042374,-500.0,0.00019999,2]
[315261100,1708971042383,-243.58118859,0.00019999,2]
[315261101,1708971042392,-399.333294,0.00019999,2]
[315261102,1708971042402,-243.58118859,0.00019999,2]
[315261103,1708971042411,-644.04663569,0.0002,2]
[315261104,1708971042420,-301.74903391,0.0002,2]
[315261105,1708971042429,-519.72,0.0002,2]
[315261106,1708971042438,-677.84,0.0002,2]
[315261107,1708971042448,-646.89,0.0002,2]
[315261108,1708971042457,-500.0,0.0002,2]
[315261109,1708971042467,-500.0,0.0002,2]
[315261110,1708971042476,-844.37,0.0002,2]
[315261111,1708971042485,-624.62,0.0002,2]
[315261112,1708971042495,-528.46,0.0002,2]
[315261113,1708971042504,-506.31,0.0002,2]
[315261114,1708971042513,-521.33,0.0002,2]
[315261115,1708971042522,-10184.91,0.0002,2]
[315261116,1708971042531,-732.04,0.0002,2]
[315261117,1708971042541,-500.0,0.0002,2]
[315261118,1708971042550,-500.0,0.0002,2]
[315261119,1708971042560,-2203.22,0.0002,2]
[315261120,1708971042572,-500.0,0.0002,2]
[315261121,1708971042583,-627.45,0.0002,2]
[315261122,1708971042592,-1458.61,0.0002,2]
[315261123,1708971042602,-1682.1,0.0002,2]
[315261124,1708971042611,-500.0,0.0002,2]
[315261125,1708971042621,-915.45,0.0002,2]
[315261126,1708971042630,-1021.98,0.0002,2]
[315261127,1708971042639,-1456.13,0.0002,2]
[315261128,1708971042648,-1213.18,0.0002,2]
[315261129,1708971042658,-195.0089163,0.0002,2]
[315261130,1708971042668,-5506.18,0.0002,2]
[315261131,1708971042680,-10856.96,0.0002,2]
[315261132,1708971042689,-1205.71,0.0002,2]
[315261133,1708971042698,-350.16228113,0.0002,2]
[315261134,1708971042707,-1953.4,0.0002,2]
[315261135,1708971042716,-500.0,0.0002,2]
[315261136,1708971042725,-500.0,0.0002,2]
[315261137,1708971042734,-1182.37,0.0002,2]
[315261138,1708971042743,-500.0,0.0002,2]
[315261139,1708971042753,-500.0,0.0002,2]
[315261140,1708971042762,-1712.84,0.0002,2]
[315261141,1708971042772,-869.89,0.0002,2]
[315261142,1708971042781,-298.70806404,0.0002,2]
[315261143,1708971042791,-721.41,0.0002,2]
[315261144,1708971042800,-1161.97,0.0002,2]
[315261146,1708971042809,-4630.33,0.0002,2]
[315261147,1708971042819,-500.0,0.0002,2]
[315261149,1708971042828,-166.666666,0.00020076,2]
[315261151,1708971042837,-253.57339372,0.00020104,2]
[315261152,1708971042846,-5000.0,0.00020226,2]
[315261153,1708971042855,-5000.0,0.00020229,2]
[315261154,1708971042864,-1445.48516943,0.0002023,2]
[315261155,1708971042873,-5000.0,0.00020233,2]
[315261156,1708971042883,-50000.0,0.00020233,2]
[315261158,1708971042892,-98569.10433689,0.00020233,2]
[315261159,1708971042900,-21234.63863851,0.00020234,2]
[315261161,1708971042910,-399.333294,0.00020236,2]
[315261163,1708971042919,-500.0,0.00020236,2]
[315261165,1708971042929,-500.0,0.00020236,2]
[315261166,1708971042938,-500.0,0.00020236,2]
[315261168,1708971042947,-500.0,0.00020236,2]
[315261169,1708971042956,-500.0,0.00020236,2]
[315261170,1708971042966,-500.0,0.00020236,2]
[315261172,1708971042976,-500.0,0.00020236,2]
[315261174,1708971042985,-256.44210122,0.00020236,2]
[315261176,1708971042993,-48439.89718972,0.00020238,2]
[315261178,1708971043002,-587.38894093,0.00020251,2]
[315261180,1708971043011,-195.91627568,0.00020253,2]
[315261181,1708971043020,-700.0,0.00020253,2]
[315261183,1708971043029,-31153.10882879,0.00020253,2]
[315261184,1708971043039,-6670.176439,0.00020253,2]
[315261185,1708971043048,-1867.64940293,0.00020253,2]
[315261186,1708971043057,-933.82470146,0.00020253,2]
[315261187,1708971043068,-243.58118859,0.00020272,2]
[315261188,1708971043077,-519.72,0.00020273,2]
[315261189,1708971043086,-677.84,0.00020273,2]
[315261190,1708971043096,-646.89,0.00020273,2]
[315261191,1708971043106,-500.0,0.00020273,2]
[315261192,1708971043115,-500.0,0.00020273,2]
[315261194,1708971043124,-844.37,0.00020273,2]
[315261195,1708971043133,-624.62,0.00020273,2]
[315261196,1708971043142,-506.31,0.00020273,2]
[315261197,1708971043152,-521.33,0.00020273,2]
[315261198,1708971043162,-10184.91,0.00020273,2]
[315261199,1708971043171,-732.04,0.00020273,2]
[315261200,1708971043180,-500.0,0.00020273,2]
[315261201,1708971043190,-500.0,0.00020273,2]
[315261202,1708971043199,-2203.22,0.00020273,2]
[315261203,1708971043209,-500.0,0.00020273,2]
[315261204,1708971043218,-627.45,0.00020273,2]
[315261205,1708971043227,-1458.61,0.00020273,2]
[315261206,1708971043236,-1682.1,0.00020273,2]
[315261207,1708971043245,-500.0,0.00020273,2]
[315261208,1708971043255,-915.45,0.00020273,2]
[315261209,1708971043264,-1021.98,0.00020273,2]
[315261210,1708971043273,-1456.13,0.00020273,2]
[315261211,1708971043283,-1213.18,0.00020273,2]
[315261212,1708971043292,-10856.96,0.00020273,2]
[315261213,1708971043301,-5506.18,0.00020273,2]
[315261214,1708971043310,-1205.71,0.00020273,2]
[315261215,1708971043322,-1953.4,0.00020273,2]
[315261216,1708971043331,-500.0,0.00020273,2]
[315261217,1708971043341,-500.0,0.00020273,2]
[315261218,1708971043350,-1182.37,0.00020273,2]
[315261219,1708971043360,-574.41,0.00020273,2]
[315261220,1708971043370,-1712.84,0.00020273,2]
[315261221,1708971043380,-869.89,0.00020273,2]
[315261222,1708971043389,-721.41,0.00020273,2]
[315261223,1708971043398,-1161.97,0.00020273,2]
[315261224,1708971043408,-4630.33,0.00020273,2]
[315261225,1708971043417,-500.0,0.00020273,2]
[315261226,1708971043426,-253.57339372,0.0002048,2]
[315261227,1708971043435,-166.666666,0.00020524,2]
[315261228,1708971043445,-664.8,0.00020538,3]
[315261229,1708971043455,-332.4,0.00020538,3]
[315261230,1708971043464,-399.333294,0.00020546,2]
[315261231,1708971043474,-519.72,0.00020547,2]
[315261232,1708971043483,-677.84,0.00020547,2]
[315261233,1708971043493,-646.89,0.00020547,2]
[315261234,1708971043503,-500.0,0.00020547,2]
[315261235,1708971043512,-467.46421808,0.00020547,2]
[315261236,1708971043522,-844.37,0.00020547,2]
[315261237,1708971043531,-624.62,0.00020547,2]
[315261238,1708971043540,-506.31,0.00020547,2]
[315261239,1708971043550,-521.33,0.00020547,2]
[315261240,1708971043558,-10184.91,0.00020547,2]
[315261241,1708971043569,-732.04,0.00020547,2]
[315261243,1708971043579,-500.0,0.00020547,2]
[315261245,1708971043591,-500.0,0.00020547,2]
[315261246,1708971043600,-2203.22,0.00020547,2]
[315261247,1708971043609,-500.0,0.00020547,2]
[315261248,1708971043618,-627.45,0.00020547,2]
[315261249,1708971043629,-1458.61,0.00020547,2]
[315261250,1708971043638,-1682.1,0.00020547,2]
[315261251,1708971043647,-500.0,0.00020547,2]
[315261252,1708971043658,-915.45,0.00020547,2]
[315261253,1708971043669,-1021.98,0.00020547,2]
[315261254,1708971043678,-1456.13,0.00020547,2]
[315261255,1708971043688,-1213.18,0.00020547,2]
[315261256,1708971043697,-10856.96,0.00020547,2]
[315261257,1708971043706,-5506.18,0.00020547,2]
[315261258,1708971043716,-1205.71,0.00020547,2]
[315261259,1708971043725,-1953.4,0.00020547,2]
[315261260,1708971043734,-500.0,0.00020547,2]
[315261261,1708971043743,-500.0,0.00020547,2]
[315261262,1708971043753,-1182.37,0.00020547,2]
[315261263,1708971043762,-1712.84,0.00020547,2]
[315261264,1708971043771,-869.89,0.00020547,2]
[315261265,1708971043780,-721.41,0.00020547,2]
[315261267,1708971043789,-1161.97,0.00020547,2]
[315261268,1708971043798,-4630.33,0.00020547,2]
[315261269,1708971043807,-500.0,0.00020547,2]
[315261270,1708971043818,-1000.0,0.00020791,2]
[315261271,1708971043827,-519.72,0.00020821,2]
[315261272,1708971043835,-677.84,0.00020821,2]
[315261273,1708971043844,-646.89,0.00020821,2]
[315261274,1708971043853,-500.0,0.00020821,2]
[315261275,1708971043862,-844.37,0.00020821,2]
[315261276,1708971043872,-624.62,0.00020821,2]
[315261277,1708971043881,-506.31,0.00020821,2]
[315261278,1708971043889,-521.33,0.00020821,2]
[315261279,1708971043898,-10184.91,0.00020821,2]
[315261280,1708971043907,-732.04,0.00020821,2]
[315261281,1708971043917,-500.0,0.00020821,2]
[315261282,1708971043926,-500.0,0.00020821,2]
[315261283,1708971043935,-2203.22,0.00020821,2]
[315261284,1708971043944,-500.0,0.00020821,2]
[315261285,1708971043953,-627.45,0.00020821,2]
[315261286,1708971043963,-1458.61,0.00020821,2]
[315261287,1708971043972,-1682.1,0.00020821,2]
[315261288,1708971043981,-500.0,0.00020821,2]
[315261289,1708971043991,-915.45,0.00020821,2]
[315261290,1708971044001,-1021.98,0.00020821,2]
[315261291,1708971044011,-1456.13,0.00020821,2]
[315261292,1708971044021,-1213.18,0.00020821,2]
[315261293,1708971044032,-10856.96,0.00020821,2]
[315261294,1708971044041,-5506.18,0.00020821,2]
[315261295,1708971044050,-1205.71,0.00020821,2]
[315261296,1708971044060,-1953.4,0.00020821,2]
[315261297,1708971044073,-500.0,0.00020821,2]
[315261298,1708971044082,-500.0,0.00020821,2]
[315261299,1708971044092,-1182.37,0.00020821,2]
[315261300,1708971044102,-1712.84,0.00020821,2]
[315261301,1708971044111,-869.89,0.00020821,2]
[315261302,1708971044120,-721.41,0.00020821,2]
[315261303,1708971044129,-1161.97,0.00020821,2]
[315261304,1708971044139,-4630.33,0.00020821,2]
[315261305,1708971044148,-500.0,0.00020821,2]
[315261306,1708971044158,-253.57339372,0.00020856,2]
[315261307,1708971044168,-500.0,0.00020899,2]
[315261308,1708971044177,-500.0,0.00020899,2]
[315261309,1708971044186,-500.0,0.00020899,2]
[315261310,1708971044195,-319.09963093,0.00020899,2]
[315261311,1708971044204,-243.58118859,0.00020899,2]
[315261312,1708971044214,-276000.0,0.000209,2]
[315261313,1708971044223,-5000.0,0.00020956,2]
[315261314,1708971044232,-5000.0,0.00020962,2]
[315261315,1708971044242,-166.666666,0.00020973,2]
[315261316,1708971044251,-275.35808168,0.00020998,2]
[315261317,1708971044260,-222.64217164,0.00020998,2]
[315261318,1708971044269,-166.14213211,0.00020998,2]
[315261319,1708971044279,-428.88796945,0.00020998,2]
[315261320,1708971044288,-592.62659572,0.00020998,2]
[315261321,1708971044297,-237.99635956,0.00020999,2]
[315261322,1708971044307,-160.0,0.00020999,2]
[315261323,1708971044319,-160.0,0.00020999,2]
[315261324,1708971044328,-160.0,0.00020999,2]
[315261325,1708971044337,-273.23870182,0.00020999,2]
[315261326,1708971044347,-500.0,0.00020999,2]
[315261327,1708971044356,-500.0,0.00020999,2]
[315261328,1708971044366,-500.0,0.00020999,2]
[315261329,1708971044375,-500.0,0.00020999,2]
[315261330,1708971044384,-500.0,0.00020999,2]
[315261331,1708971044394,-500.0,0.00020999,2]
[315261332,1708971044403,-156.29045805,0.00020999,2]
[315261333,1708971044413,-500.0,0.00020999,2]
[315261334,1708971044424,-500.0,0.00020999,2]
[315261335,1708971044434,-643.59909627,0.00020999,2]
[315261336,1708971044443,-399.333294,0.00020999,2]
[315261337,1708971044452,-500.0,0.00020999,2]
[315261338,1708971044463,-500.0,0.00020999,2]
[315261339,1708971044473,-500.0,0.00020999,2]
[315261340,1708971044482,-500.0,0.00020999,2]
[315261341,1708971044491,-500.0,0.00020999,2]
[315261342,1708971044500,-500.0,0.00020999,2]
[315261343,1708971044509,-500.0,0.00020999,2]
[315261344,1708971044518,-500.0,0.00020999,2]
[315261345,1708971044614,-500.0,0.00020999,2]
[315261346,1708971044624,-290358.05092142,0.00021,2]
[315261347,1708971044704,-1662.80223551,0.00021,2]
[315261348,1708971044716,-3006.35009635,0.00021,2]
[315261349,1708971044727,-685.49330367,0.00021,2]
[315261350,1708971044827,-156.89421406,0.00017495,2]
[315261351,1708971044837,-799.66439935,0.00021,2]
[315261352,1708971044853,-104254.97037543,0.00021,2]
[315261353,1708971044906,-312.26940993,0.00021,2]
[315261354,1708971044917,-13295.34859117,0.00021,2]
[315261355,1708971044930,-11845.54064751,0.00021,2]
[315261356,1708971044941,-1586248.81865539,0.00021,2]
[315261384,1708971046596,-500.0,0.00019178,2]
[315261385,1708971046605,-99.14949005,0.00021,2]
[315261386,1708971046617,-1877.64212774,0.00021,2]
[315261387,1708971048545,-257.30468228,0.00019178,2]
[315261417,1708971526722,-704.27292795,0.00017252,2]
[315261418,1708971526748,-281.44189552,0.00017253,2]
[315261419,1708971526769,-155.07598723,0.0001726,2]
[315261420,1708971526791,-598.2091893,0.0001796,2]
[315261499,1708972232686,-281.44189552,0.00017257,2]
[315261500,1708972232696,-159.80558045,0.00017258,2]
[315261501,1708972232705,-1052.58452534,0.00017259,2]
[315261502,1708972232717,-652.85347624,0.00017259,2]
[315261637,1708972238554,-159.80558045,0.00017256,2]
[315261639,1708972238566,-626.17635466,0.00017259,2]
[315261641,1708972238576,-155.07598723,0.0001726,2]
[315261643,1708972238585,-235.623164,0.00018028,2]
[315261645,1708972238595,-24900.0,0.00018028,2]
[315261647,1708972238605,-1668.04769714,0.000189,2]
[315261649,1708972238614,-739.843,0.00019,4]
[315261651,1708972238624,-155.06047358,0.00019,2]
[315261653,1708972238634,-1212.71544269,0.00019177,2]
[315261655,1708972238644,-498.21081952,0.00019178,2]
[315261657,1708972238653,-500.0,0.00019178,2]
[315261659,1708972238664,-500.0,0.00019178,2]
[315261661,1708972238673,-500.0,0.00019178,2]
[315261663,1708972238683,-500.0,0.00019178,2]
[315261665,1708972238692,-500.0,0.00019178,2]
[315261667,1708972238702,-629.04,0.00019178,2]
[315261669,1708972238711,-500.0,0.00019178,2]
[315261671,1708972238720,-500.0,0.00019178,2]
[315261673,1708972238730,-500.0,0.00019178,2]
[315261675,1708972238740,-1541.92,0.00019178,2]
[315261677,1708972238750,-307.43320476,0.00019178,2]
[315261679,1708972238759,-500.0,0.00019178,2]
[315261681,1708972238769,-500.0,0.00019178,2]
[315261683,1708972238778,-500.0,0.00019178,2]
[315261685,1708972238787,-1641.47,0.00019178,2]
[315261687,1708972238799,-285.47079158,0.00019178,2]
[315261689,1708972238808,-691.35,0.00019178,2]
[315261691,1708972238816,-500.0,0.00019178,2]
[315261693,1708972238825,-500.0,0.00019178,2]
[315261694,1708972238835,-725.51,0.00019178,2]
[315261696,1708972238845,-500.0,0.00019178,2]
[315261698,1708972238855,-559.01,0.00019178,2]
[315261700,1708972238865,-230.32522058,0.00019178,2]
[315261702,1708972238874,-500.0,0.00019178,2]
[315261704,1708972238883,-579.17,0.00019178,2]
[315261706,1708972238893,-1456.13,0.00019178,2]
[315261708,1708972238902,-501.0634752,0.00019178,2]
[315261710,1708972238911,-500.0,0.00019178,2]
[315261712,1708972238920,-500.0,0.00019178,2]
[315261714,1708972238930,-1260.34,0.00019178,2]
[315261716,1708972238939,-500.0,0.00019178,2]